[Event "44th Chess Olympiad Open 2022"]
[Site "Chennai"]
[Date "2022.08.02"]
[Round "5.14"]
[White "Perunovic, Milos"]
[Black "Kurniawan, Muhamad Agus"]
[Result "1-0"]
[WhiteElo "2539"]
[BlackElo "2328"]
[Annotator "RC"]
[PlyCount "99"]
[EventDate "2022.??.??"]
[TimeControl "60"]

1. e4 {[%emt 0:00:07]} e5 {[%emt 0:00:12]} 2. Nf3 {[%emt 0:00:20]} Nf6 {
[%emt 0:00:05]} 3. d4 {[%emt 0:02:01]} Nxe4 {[%emt 0:00:09]} 4. Bd3 {[%emt 0:
00:00]} d5 {[%emt 0:00:03]} 5. Nxe5 {[%emt 0:00:08]} Bd6 {[%emt 0:00:06]} 6.
Nc3 {[%emt 0:04:55]} Nxc3 {[%emt 0:19:03]} 7. bxc3 {[%emt 0:01:12]} O-O {
[%emt 0:03:42]} 8. O-O {[%emt 0:05:24]} Nd7 {[%emt 0:05:18]} 9. Re1 {[%emt 0:
00:00]} c5 {[%emt 0:07:40]} 10. Qf3 {[%emt 0:03:14]} c4 {[%emt 0:08:50]} 11.
Bf5 {[%emt 0:00:34]} Nxe5 {[%emt 0:08:55]} 12. dxe5 {[%emt 0:00:09]} Re8 {
[%emt 0:12:49]} 13. Bf4 {[%emt 0:04:00]} Bf8 {[%emt 0:01:05]} 14. Bxc8 {
[%emt 0:00:26]} Rxc8 {[%emt 0:00:01]} 15. Re2 {[%emt 0:01:21]} Qa5 {[%emt 0:00:
00]} 16. h4 {[%emt 0:03:27]} Rcd8 {[%emt 0:04:25]} 17. Rd2 {[%emt 0:15:15]} Qa3
{[%emt 0:00:22]} 18. h5 {[%emt 0:06:45]} d4 {[%emt 0:02:01]} 19. Bg5 {[%emt 0:
00:00]} Be7 {[%emt 0:04:42]} 20. Bxe7 {[%emt 0:00:42]} Rxe7 {[%emt 0:00:02]}
21. h6 {[%emt 0:01:31]} Re6 {[%emt 0:04:29]} 22. Rb1 {[%emt 0:07:25]} b6 {
[%emt 0:06:34]} 23. Rxd4 {[%emt 0:01:25]} Rxd4 {[%emt 0:01:47]} 24. Qa8+ {
[%emt 0:00:06]} Qf8 {[%emt 0:00:00]} 25. Qxf8+ {[%emt 0:00:09]} Kxf8 {[%emt 0:
00:00]} 26. hxg7+ {[%emt 0:00:09]} Kxg7 {[%emt 0:00:04]} 27. cxd4 {[%emt 0:00:
00]} Kg6 {[%emt 0:00:02]} 28. f3 {[%emt 0:05:25]} Kf5 {[%emt 0:01:21]} 29. Kf2
{[%emt 0:00:26]} Rh6 {[%emt 0:00:08]} 30. Rb4 {[%emt 0:01:54]} Rc6 {[%emt 0:00:
00]} 31. Ke3 {[%emt 0:05:17]} h5 {[%emt 0:00:01]} 32. g4+ {[%emt 0:01:11]} hxg4
{[%emt 0:00:51]} 33. fxg4+ {[%emt 0:01:46]} Ke6 {[%emt 0:00:02]} 34. Ke4 {
[%emt 0:01:44]} Rc8 {[%emt 0:00:01]} 35. d5+ {[%emt 0:00:41]} Kd7 {[%emt 0:00:
00]} 36. Kf5 {[%emt 0:01:04]} Rc5 {[%emt 0:02:13]} 37. d6 {[%emt 0:00:05]} b5 {
[%emt 0:00:47]} 38. Kf6 {[%emt 0:04:51]} Rd5 {[%emt 0:00:25]} 39. a4 {[%emt 0:
00:00]} a6 {[%emt 0:00:38]} 40. axb5 {[%emt 0:00:06]} axb5 {[%emt 0:00:03]} 41.
g5 {[%emt 0:05:29]} c3 {[%emt 0:08:40]} 42. g6 {[%emt 0:09:24]} fxg6 {[%emt 0:
00:00]} 43. Rh4 {[%emt 0:01:13]} Kc6 {[%emt 0:00:10]} 44. Rh8 {[%emt 0:00:34]}
b4 {[%emt 0:00:44]} 45. Rc8+ {[%emt 0:00:38]} Kd7 {[%emt 0:06:11]} 46. Rc7+ {
[%emt 0:00:33]} Kd8 {[%emt 0:00:03]} 47. Ke6 {[%emt 0:00:48]} Rd4 {[%emt 0:00:
00]} 48. Rh7 {[%emt 0:02:40]} Kc8 {[%emt 0:00:26]} 49. Rh8+ {[%emt 0:01:04]}
Kb7 {[%emt 0:00:04]} 50. d7 {[%emt 0:00:16]} 1-0

[Event "44th Chess Olympiad Open 2022"]
[Site "Chennai"]
[Date "2022.08.02"]
[Round "5.14"]
[White "Megaranto, Susanto"]
[Black "Indjic, Aleksandar"]
[Result "1/2-1/2"]
[WhiteElo "2529"]
[BlackElo "2620"]
[Annotator "TA"]
[PlyCount "80"]
[EventDate "2022.??.??"]
[TimeControl "60"]

{[%evp 9,80,8,21,22,17,22,17,17,8,2,77,63,70,70,64,73,70,77,81,77,83,45,46,22,
48,15,18,0,14,27,21,21,106,16,14,0,0,0,71,55,57,10,10,17,21,28,44,0,-16,-10,0,
-5,-6,-12,-12,-20,-20,-26,-4,-6,-6,-10,0,0,0,-15,0,-18,0,-15,0,-17,0]} 1. e4 {
[%emt 0:00:08]} c5 {[%emt 0:00:33]} 2. c3 {[%emt 0:00:23]} d5 {[%emt 0:00:11]}
3. exd5 {[%emt 0:00:07]} Nf6 {[%emt 0:00:10]} 4. Nf3 {[%emt 0:13:32]} Nxd5 {
[%emt 0:02:20]} 5. d4 {[%emt 0:00:13]} cxd4 {[%emt 0:00:50]} 6. Qxd4 {[%emt 0:
00:00] B22: Sicilian: 2 c3.} Nc6 {[%emt 0:01:05]} 7. Bb5 {[%emt 0:00:15]} a6 {
[%emt 0:02:20]} 8. Bxc6+ {[%emt 0:00:12]} bxc6 {[%emt 0:00:08]} 9. O-O {
[%emt 0:01:01] [#]} e6 $146 {[%emt 0:02:44]} (9... f6 $11) ({Predecessor:} 9...
Qb6 10. Nbd2 e6 11. Qxb6 Nxb6 12. b3 f6 13. Bb2 Nd5 14. Rfd1 e5 15. c4 Nf4 {
0-1 (54) Jhunjhnuwala,R (2122)-Shabalov,A (2495) Acqui Terme 2022}) 10. c4 $16
{[%emt 0:08:26]} Ne7 {[%emt 0:08:24]} 11. Qxd8+ {[%emt 0:03:56]} Kxd8 {[%emt 0:
00:00]} 12. Rd1+ {[%emt 0:01:10]} Ke8 {[%emt 0:00:08]} 13. Nc3 {[%emt 0:00:27]}
f6 {[%emt 0:00:18] [#]} 14. Ne4 $1 {[%emt 0:11:16] Hoping for Nd6+.} Ng6 {
[%emt 0:00:07]} 15. Be3 {[%emt 0:02:04] White is much more active. The black
rooks are badly placed.} e5 {[%emt 0:00:08]} 16. h3 {[%emt 0:03:27]} h5 {
[%emt 0:01:56]} 17. b3 {[%emt 0:03:48]} a5 {[%emt 0:00:58]} 18. Bb6 {[%emt 0:
00:00]} Bf5 {[%emt 0:00:15]} 19. Nd6+ {[%emt 0:11:06]} Bxd6 {[%emt 0:00:11]}
20. Rxd6 {[%emt 0:00:03]} Ne7 {[%emt 0:10:05]} (20... Ra6 $1 $11 21. Rxc6 Ne7)
21. Rad1 {[%emt 0:01:32]} (21. Nh4 $16) 21... Kf7 $11 {[%emt 0:00:17]} 22. Bc5
{[%emt 0:13:34]} (22. Nh4 {is more complex.} Be6 23. Bd8 Nf5 24. Nxf5 Bxf5 25.
Bb6) 22... Be6 {[%emt 0:08:37]} 23. Nd2 {[%emt 0:01:33]} Bf5 {[%emt 0:03:21] 
[#] Inhibits Ne4.} (23... Ra6 $11) 24. f3 $1 $16 {[%emt 0:06:59]} a4 {[%emt 0:
00:00]} 25. Ne4 {[%emt 0:03:52]} (25. b4 $14 {is more appropriate.}) 25... axb3
$1 $11 {[%emt 0:00:29]} 26. axb3 {[%emt 0:00:06]} Ra2 {[%emt 0:03:18]} 27. R6d2
{[%emt 0:02:28]} Rha8 {[%emt 0:05:28]} 28. Nc3 {[%emt 0:03:06]} ({White should
play} 28. b4 $14) 28... Rxd2 {[%emt 0:03:25]} 29. Rxd2 {[%emt 0:00:02]} h4 {
[%emt 0:01:42]} 30. Na4 {[%emt 0:02:31]} Be6 {[%emt 0:00:42]} 31. Bxe7 {
[%emt 0:02:01]} Kxe7 {[%emt 0:00:12] Endgame KRB-KRN} 32. Kf2 {[%emt 0:02:26]}
Ra5 {[%emt 0:00:12][%cal Ye6c4] White must now prevent ...Bxc4!} 33. Rc2 {
[%emt 0:00:30]} f5 {[%emt 0:05:28][%cal Yf6f5,Yf5f4]} 34. Ke3 {[%emt 0:00:37]
The position is equal.} f4+ {[%emt 0:03:19]} 35. Kf2 {[%emt 0:01:10]} ({But not
} 35. Ke4 $2 g6 36. Kd3 Bf5+ 37. Kc3 Bxc2 38. Kxc2 e4 $19) 35... Kd6 {[%emt 0:
01:03]} 36. Rd2+ {[%emt 0:00:32]} Kc7 {[%emt 0:00:09][%cal Ye6c4] aiming for ..
.Bxc4!} 37. Rc2 {[%emt 0:00:33]} Bf7 {[%emt 0:07:07]} 38. Rc1 {[%emt 0:00:33]}
Be6 {[%emt 0:08:51]} 39. Rc2 {[%emt 0:00:11]} Bf7 {[%emt 0:00:11]} 40. Rc1 {
[%emt 0:00:03]} Be6 {[%emt 0:00:15] Weighted Error Value: White=0.14 (very
precise) /Black=0.17 (very precise)} 1/2-1/2

[Event "44th Chess Olympiad Open 2022"]
[Site "Chennai"]
[Date "2022.08.02"]
[Round "5.14"]
[White "Ervan, Mohamad"]
[Black "Ivanisevic, Ivan"]
[Result "1/2-1/2"]
[WhiteElo "2402"]
[BlackElo "2561"]
[Annotator "TA"]
[PlyCount "63"]
[EventDate "2022.??.??"]
[TimeControl "60"]

{[%evp 10,63,19,31,24,37,56,43,67,0,0,0,0,0,11,0,-5,2,12,0,0,13,12,14,11,0,20,
21,41,39,53,6,53,51,61,35,62,52,52,58,45,35,33,23,27,27,31,15,22,22,13,0,22,0,
16,0]} 1. e4 {[%emt 0:00:08] Bulletin} c6 {[%emt 0:00:05]} 2. Nf3 {[%emt 0:00:
00]} d5 {[%emt 0:00:06]} 3. Nc3 {[%emt 0:00:13]} dxe4 {[%emt 0:00:05]} 4. Nxe4
{[%emt 0:00:07]} Nf6 {[%emt 0:00:07]} 5. Ng3 {[%emt 0:00:26][%cal Ye4g3,Yg3e2,
Ye2c3]} h5 {[%emt 0:00:07]} 6. h3 {[%emt 0:00:11]} h4 {[%emt 0:00:55] B11:
Caro-Kann: Two Knights Variation.} 7. Ne2 {[%emt 0:00:06]} Qa5 {[%emt 0:00:00]}
8. Nc3 {[%emt 0:01:31]} g5 {[%emt 0:01:28] White is slightly better.} 9. d4 {
[%emt 0:03:33]} ({Better is} 9. Be2 $14) 9... g4 $11 {[%emt 0:00:09]} 10. Ne5 {
[%emt 0:09:47] [#] Strongly threatening Bc4.} gxh3 {[%emt 0:01:08]} 11. gxh3 {
[%emt 0:00:11] [#]} Be6 $146 {[%emt 0:04:19]} ({Predecessor:} 11... Bf5 12. Bd3
Bxd3 13. Qxd3 Nbd7 14. Nf3 Nd5 15. Kf1 Nb4 16. Qe2 Qf5 17. Ne4 O-O-O {1-0 (73)
Markovic,M (2540)-Ristic,N (2420) Ulcinj 1998 EXT 1999 [Bulletin]}) 12. Bc4 {
[%emt 0:14:03]} Bxc4 {[%emt 0:02:19]} 13. Nxc4 {[%emt 0:00:00]} Qh5 {[%emt 0:
00:57]} 14. Qxh5 {[%emt 0:01:06]} Rxh5 {[%emt 0:00:06]} 15. Rg1 {[%emt 0:05:22]
} Nbd7 {[%emt 0:03:37]} 16. Rg5 {[%emt 0:05:58]} Nb6 {[%emt 0:03:38]} 17. Ne5 {
[%emt 0:06:28]} Rh7 {[%emt 0:08:03]} 18. Be3 {[%emt 0:00:00]} Nbd5 {[%emt 0:09:
01]} 19. Nxd5 {[%emt 0:01:29]} Nxd5 {[%emt 0:00:34]} 20. Rg8 {[%emt 0:01:49]} (
20. Nf3 $14 {should be considered.}) 20... O-O-O {[%emt 0:15:37]} (20... Rg7
$11 21. Rxg7 Bxg7) 21. Ke2 $14 {[%emt 0:02:42]} e6 {[%emt 0:05:56]} 22. c3 {
[%emt 0:01:56]} c5 {[%emt 0:06:41]} 23. dxc5 {[%emt 0:00:00] White is more
active.} Nxe3 {[%emt 0:00:23]} 24. fxe3 {[%emt 0:00:08] Hoping for Rd1.} Bxc5 {
[%emt 0:00:15]} 25. Rag1 {[%emt 0:03:17]} Bd6 {[%emt 0:00:00]} 26. Rxd8+ {
[%emt 0:00:44]} (26. Nf3 {keeps more tension.} Bg3 27. Rg4 f5 28. Rg6) 26...
Kxd8 {[%emt 0:00:05] Endgame KRB-KRN} 27. Rg8+ {[%emt 0:00:10]} Ke7 {[%emt 0:
02:43]} 28. Nf3 {[%emt 0:09:33]} f5 {[%emt 0:00:00] The position is equal.} 29.
Ng5 {[%emt 0:06:07]} Rh6 {[%emt 0:02:35]} 30. Nf3 {[%emt 0:00:12]} Rh7 {
[%emt 0:14:18] Prevents Rg7+.} 31. Ng5 {[%emt 0:00:00]} Rh6 {[%emt 0:00:19]}
32. Nf3 {[%emt 0:07:50] Weighted Error Value: White=0.09 (flawless) /Black=0.
07 (flawless)} 1/2-1/2

[Event "44th Chess Olympiad Open 2022"]
[Site "Chennai"]
[Date "2022.08.02"]
[Round "5.15"]
[White "Delgado Ramirez, Neuris"]
[Black "Mchedlishvili, Mikheil"]
[Result "1/2-1/2"]
[WhiteElo "2614"]
[BlackElo "2593"]
[Annotator "TA"]
[PlyCount "90"]
[EventDate "2022.??.??"]
[TimeControl "60"]

{[%evp 16,90,25,30,35,14,35,0,6,0,0,3,0,0,0,0,0,0,27,8,12,0,2,12,31,27,36,27,
32,0,0,0,0,0,0,0,0,0,0,0,0,0,0,0,0,0,0,0,0,0,0,0,0,0,0,0,0,0,0,0,19,19,28,31,
47,41,35,43,62,0,0,0,0,0,0,0,0]} 1. e4 {[%emt 0:00:06]} c5 {[%emt 0:00:15]} 2.
Nf3 {[%emt 0:00:30]} e6 {[%emt 0:00:27]} 3. d4 {[%emt 0:00:39]} cxd4 {[%emt 0:
00:00]} 4. Nxd4 {[%emt 0:00:05]} Nc6 {[%emt 0:00:29]} 5. Nc3 {[%emt 0:00:40]}
Qc7 {[%emt 0:00:41]} 6. a3 {[%emt 0:01:49]} a6 {[%emt 0:01:55]} 7. Be3 {
[%emt 0:01:22]} b5 {[%emt 0:01:41]} 8. Nxc6 {[%emt 0:01:17]} Qxc6 {[%emt 0:00:
00]} 9. Be2 {[%emt 0:00:31] 9.Bd3 is the fancy move.} Bb7 {[%emt 0:01:24] B49:
Sicilian: Taimanov: 5 Nc3 Qc7 6 Be3 a6 7 Be2.} 10. Qd4 {[%emt 0:03:03]} Rc8 {
[%emt 0:02:17] [#]} 11. f3 $146 {[%emt 0:07:07]} ({Predecessor:} 11. Rd1 d6 12.
O-O Nf6 13. Bf3 Qc7 14. a4 b4 15. Qxb4 d5 16. Qb3 dxe4 17. Be2 {1-0 (33) Ter
Sahakyan,S (2617)-Erigaisi,A (2575) Montebelluna 2020}) 11... Nf6 {[%emt 0:00:
00]} 12. e5 {[%emt 0:07:57]} Nd5 {[%emt 0:02:13]} 13. Nxd5 {[%emt 0:00:46]}
Qxd5 {[%emt 0:00:27]} 14. Qxd5 {[%emt 0:06:08]} Bxd5 {[%emt 0:00:13]} 15. Kd2 {
[%emt 0:00:35]} Bc4 {[%emt 0:17:39]} 16. Bxc4 {[%emt 0:04:02]} Rxc4 {[%emt 0:
00:00]} 17. b3 {[%emt 0:11:10]} Rc6 {[%emt 0:01:53]} 18. b4 {[%emt 0:01:13]
Prevents Bc5.} g5 {[%emt 0:23:14]} 19. Bd4 {[%emt 0:09:01]} ({Of course not} 
19. Bxg5 Rg8 20. h4 h6 $17) 19... g4 {[%emt 0:08:25]} 20. f4 {[%emt 0:03:51]}
Bh6 {[%emt 0:00:35]} 21. g3 {[%emt 0:00:48]} O-O $1 {[%emt 0:00:34]} 22. a4 {
[%emt 0:09:10]} d6 {[%emt 0:00:40]} 23. axb5 {[%emt 0:00:25]} axb5 {[%emt 0:00:
00]} 24. Kd3 {[%emt 0:00:45]} Rd8 {[%emt 0:03:19]} 25. c3 $1 {[%emt 0:01:51]}
dxe5 {[%emt 0:01:59]} 26. fxe5 {[%emt 0:00:30]} f6 {[%emt 0:00:17] [#] White
must now prevent ...fxe5.} 27. Rhe1 {[%emt 0:02:27]} fxe5 {[%emt 0:01:53]} 28.
Rxe5 {[%emt 0:01:06] Hoping for Ra7.} Bg7 {[%emt 0:00:26]} 29. Rg5 {[%emt 0:00:
00]} e5 $1 {[%emt 0:01:19]} 30. Ra7 {[%emt 0:00:03]} Rg6 {[%emt 0:03:43]} 31.
Rxg7+ $1 {[%emt 0:00:21]} Rxg7 {[%emt 0:00:58]} 32. Rxe5 $11 {[%emt 0:00:06]
Endgame KRR-KRB} Rb8 {[%emt 0:01:07]} 33. c4 {[%emt 0:02:17]} bxc4+ {[%emt 0:
03:33]} 34. Kxc4 {[%emt 0:00:45]} Rc7+ {[%emt 0:01:41]} 35. Bc5 {[%emt 0:00:25]
} Kf7 {[%emt 0:01:31]} 36. Rg5 {[%emt 0:01:02]} Rd7 {[%emt 0:00:00]} 37. Rxg4 {
[%emt 0:00:29]} Rbb7 {[%emt 0:00:36]} 38. Rh4 {[%emt 0:01:10]} Ke8 {[%emt 0:01:
31]} 39. b5 {[%emt 0:01:21][%cal Yb4b5,Yb5b6]} Rd1 {[%emt 0:03:29]} 40. b6 {
[%emt 0:01:13]} Rf7 $1 {[%emt 0:00:36]} 41. Kb5 {[%emt 0:44:28] aiming for Rd4.
} Kd7 $1 {[%emt 0:30:18]} 42. Rh5 {[%emt 0:00:44]} (42. Ka6 $14) 42... Kc8 {
[%emt 0:03:18] The position is equal.} 43. Kc6 {[%emt 0:01:49] And now Rh6
would win.} Rf6+ {[%emt 0:00:19]} 44. Kb5 {[%emt 0:00:00]} Rf7 {[%emt 0:00:06]}
45. Kc6 {[%emt 0:00:30] Threatens to win with Rh6.} Rf6+ {[%emt 0:00:39]
Weighted Error Value: White=0.05 (flawless) /Black=0.02 (flawless)} 1/2-1/2

[Event "44th Chess Olympiad Open 2022"]
[Site "Chennai"]
[Date "2022.08.02"]
[Round "5.15"]
[White "Jobava, Baadur"]
[Black "Bachmann, Axel"]
[Result "1-0"]
[WhiteElo "2585"]
[BlackElo "2588"]
[Annotator "TA"]
[PlyCount "113"]
[EventDate "2022.??.??"]
[TimeControl "60"]

{[%evp 9,113,-18,-18,-67,18,14,12,15,16,17,6,7,18,-5,1,-32,-44,-33,0,0,0,0,0,0,
0,-13,23,27,36,19,37,10,40,18,33,11,12,0,28,0,3,0,25,4,49,25,29,15,17,0,50,35,
93,-31,93,98,105,105,156,117,134,120,127,120,150,150,150,150,150,150,150,150,
213,228,255,255,255,255,263,259,316,302,315,255,522,505,671,542,542,535,988,
960,859,980,913,884,1424,1398,1076,996,978,934,942,910,1364,1288]} 1. Nf3 {
[%emt 0:00:12]} d5 {[%emt 0:00:37]} 2. c4 {[%emt 0:00:20]} c6 {[%emt 0:01:22]}
3. g3 {[%emt 0:00:17]} Bg4 {[%emt 0:02:32]} 4. Ne5 {[%emt 0:00:31]} Bf5 {
[%emt 0:03:59]} 5. cxd5 {[%emt 0:00:46]} Qxd5 {[%emt 0:04:49] [#]} 6. d4 $146 {
[%emt 0:06:44] A11: English Opening: 1...c6.} (6. Qb3 $11 Nd7 7. Qxd5 (7. Qxb7
$2 Rb8 $19) 7... cxd5 8. Nxd7 Bxd7 9. d4) ({Predecessor:} 6. Qb3 Qxb3 7. axb3
Na6 8. Bg2 Nc5 9. O-O Nxb3 10. Ra3 Nd4 11. Nc3 f6 12. Nc4 {0-1 (46)
Mikhalevski,V (2519)-Ramirez Alvarez,A (2593) Wheeling 2012}) 6... e6 {[%emt 0:
00:00] [#]} (6... Qxh1 $2 7. Qb3 Qd5 8. Qxb7 $18) (6... Bxb1 $15 7. Rxb1 Nd7)
7. Qb3 $1 $11 {[%emt 0:06:23]} Qxb3 {[%emt 0:07:52]} 8. axb3 {[%emt 0:00:05]
The position is equal.} Bc2 {[%emt 0:10:28]} 9. Bg2 {[%emt 0:06:42]} Nd7 {
[%emt 0:07:54]} 10. Nc4 {[%emt 0:11:25]} Ngf6 {[%emt 0:21:20]} 11. Bf4 {
[%emt 0:28:37]} Bxb3 {[%emt 0:01:44]} 12. Nd6+ {[%emt 0:05:21]} Bxd6 {[%emt 0:
00:00]} 13. Bxd6 {[%emt 0:00:05]} Bd5 {[%emt 0:00:41]} 14. f3 {[%emt 0:00:25]}
Nb6 {[%emt 0:01:44]} 15. e4 {[%emt 0:03:50]} Bc4 {[%emt 0:00:27]} 16. Kf2 {
[%emt 0:02:45]} O-O-O {[%emt 0:08:08]} 17. Bc5 {[%emt 0:01:17] This bishop
pair is nice.} Nfd7 {[%emt 0:06:28]} 18. Be7 {[%emt 0:03:57] White has
compensation.} Rde8 {[%emt 0:00:05]} 19. Bd6 {[%emt 0:00:05]} Ba6 {[%emt 0:00:
00]} 20. b3 {[%emt 0:00:18] Inhibits Nc4.} Kd8 {[%emt 0:03:35]} 21. Rc1 {
[%emt 0:07:30][%cal Ya1a6]} Nc8 {[%emt 0:00:04]} 22. Bb4 {[%emt 0:00:13]} Kc7 {
[%emt 0:00:21]} 23. f4 {[%emt 0:01:36]} Nf6 {[%emt 0:00:57]} 24. h3 {[%emt 0:
00:00]} Rd8 {[%emt 0:00:07]} 25. Ke3 {[%emt 0:00:14]} h5 {[%emt 0:01:22]} 26.
Nd2 {[%emt 0:00:34] Nf3 is the strong threat.} (26. Ra5 $5 {[%cal Rb1d2]})
26... Nd7 {[%emt 0:03:18]} 27. Nc4 {[%emt 0:04:31]} Bb5 {[%emt 0:00:05]} 28.
Bf3 {[%emt 0:02:20]} f6 {[%emt 0:00:43]} 29. Ra2 {[%emt 0:01:11]} f5 {[%emt 0:
00:00]} (29... Kb8 $11) 30. e5 $14 {[%emt 0:02:00]} Ndb6 {[%emt 0:01:06]} (
30... Kb8 $14) 31. Nxb6 {0x0.001b8378eaf2dp-1022s more active pieces.} (31. Nd6
$1 $16 {[%cal Rd6b5]} Nxd6 32. Bxd6+ Kc8 33. Rxa7) 31... Nxb6 (31... axb6 $15 {
stays ahead.} 32. Ra8 g6) 32. Bd6+ $16 {[%emt 0:01:31] White stays focused
until the end.} Rxd6 {[%emt 0:00:58]} 33. exd6+ {[%emt 0:00:05]} Kb8 {[%emt 0:
00:00]} ({Better is} 33... Kxd6 34. Rxa7 Rb8) 34. Kf2 {[%emt 0:01:11] aiming
for Re1.} Rd8 {[%emt 0:00:10]} 35. Bxh5 {[%emt 0:00:13]} Rxd6 {[%emt 0:00:04]}
36. Rd2 {[%emt 0:01:19]} Nd5 {[%emt 0:01:02]} 37. Bf3 {[%emt 0:00:04]} Nb4 {
[%emt 0:00:06]} 38. Ke3 {[%emt 0:00:07] Prevents Nd3.} Rd8 {[%emt 0:01:08]} 39.
g4 {[%emt 0:01:04][%cal Yg3g4,Yg4g5]} Rh8 {[%emt 0:00:08] [#]} 40. Rh1 {
[%emt 0:00:19]} a5 {[%emt 0:01:05] [#]} (40... Rh4 $16 41. Kf2 fxg4) 41. g5 $1
$18 {[%emt 0:02:42]} Kc7 {[%emt 0:07:16]} 42. h4 {[%emt 0:01:56][%cal Yh3h4,
Yh4h5,Yh5h6]} Kd6 {[%emt 0:00:47]} 43. h5 {[%emt 0:00:36]} Ke7 {[%emt 0:00:07]}
44. h6 {[%emt 0:02:45]} g6 {[%emt 0:00:42]} 45. Be2 {[%emt 0:00:00]} Nd5+ {
[%emt 0:00:45]} 46. Kf3 {[%emt 0:00:06] Black must now prevent Bxb5.} Nc3 {
[%emt 0:00:25]} (46... Bxe2+ {was necessary.} 47. Rxe2 Kf7) 47. Bc4 {[%emt 0:
02:52] White is clearly winning.} Bxc4 {[%emt 0:00:47]} 48. bxc4 {[%emt 0:00:
05] Endgame KRR-KRN} b5 {[%emt 0:00:04]} 49. Rb2 {[%emt 0:07:02]} a4 {[%emt 0:
07:33]} 50. Rc1 {[%emt 0:01:41]} a3 {[%emt 0:00:34]} 51. Rb3 {[%emt 0:00:07]}
Ne4 {[%emt 0:00:09]} 52. Rxa3 {[%emt 0:02:56] Hoping for Ra7+.} Nd2+ {[%emt 0:
00:06]} 53. Ke2 {[%emt 0:01:15]} Nxc4 {[%emt 0:00:00]} 54. Ra7+ {[%emt 0:00:05]
} Kd6 {[%emt 0:00:04]} 55. Rca1 {[%emt 0:01:30] Strongly threatening Ra8.} Nb6
{[%emt 0:00:26] Inhibits Ra8.} 56. Rg7 {[%emt 0:00:00]} Nd5 {[%emt 0:00:24]}
57. Raa7 {[%emt 0:00:13] Weighted Error Value: White=0.13 (very precise) /
Black=0.30} 1-0

[Event "44th Chess Olympiad Open 2022"]
[Site "Chennai"]
[Date "2022.08.02"]
[Round "5.15"]
[White "Paichadze, Luka"]
[Black "Cubas, Jose Fernando"]
[Result "1-0"]
[WhiteElo "2561"]
[BlackElo "2451"]
[Annotator "TA"]
[PlyCount "83"]
[EventDate "2022.??.??"]
[TimeControl "60"]

{[%evp 11,83,18,25,19,31,31,20,24,24,26,24,31,19,19,19,20,25,27,47,43,69,54,81,
47,51,12,55,56,64,59,63,62,89,70,124,120,200,79,59,22,36,0,0,-10,-13,-5,-6,-10,
-7,-7,-7,-12,0,-14,0,-4,0,0,0,0,27,29,87,79,89,84,72,77,534,529,495,479,29986,
29987]} 1. e4 {[%emt 0:00:03] ChessBase II} c5 {[%emt 0:00:05]} 2. Nf3 {
[%emt 0:00:05]} d6 {[%emt 0:00:04]} 3. d4 {[%emt 0:00:10]} cxd4 {[%emt 0:00:05]
} 4. Qxd4 {[%emt 0:00:03]} Nc6 {[%emt 0:01:41]} 5. Bb5 {[%emt 0:00:08]} Bd7 {
[%emt 0:00:19]} 6. Qd3 {[%emt 0:00:17]} g6 {[%emt 0:03:33]} 7. O-O {[%emt 0:00:
00] B53: Sicilian: 2...d6: Lines with Qxd4.} Bg7 {[%emt 0:00:15]} 8. c4 {
[%emt 0:00:28]} Nf6 {[%emt 0:00:12]} 9. Nc3 {[%emt 0:00:18] The position is
equal.} O-O {[%emt 0:00:15]} 10. h3 {[%emt 0:01:59]} Rc8 {[%emt 0:07:29]} 11.
Be3 {[%emt 0:02:07]} Nb4 {[%emt 0:03:24] is the legacy move (11...a6).} 12. Qe2
{[%emt 0:02:42]} a6 {[%emt 0:01:42]} 13. Bxd7 {[%emt 0:01:40]} Nxd7 {[%emt 0:
00:00]} 14. Rac1 {[%emt 0:06:02][%cal Ya1c1,Yc1c3,Yc3b3]} Bxc3 {[%emt 0:13:53]}
15. Rxc3 {[%emt 0:02:46]} Nxa2 {[%emt 0:00:06]} 16. Rb3 {[%emt 0:00:11] [#]
aiming for Ra1. White is more active.} Nc5 $1 {[%emt 0:00:00]} 17. Bxc5 {
[%emt 0:00:39]} dxc5 {[%emt 0:00:04]} 18. Rxb7 {[%emt 0:00:17] [#]} Rb8 $146 {
[%emt 0:08:20]} (18... Rc7 $5 {[%cal Rc7b7]} 19. Rb6 Nb4 $14) ({Predecessor:} 
18... Rc7 19. Rxc7 Qxc7 20. Rd1 Rd8 21. Rxd8+ Qxd8 22. Qe3 Qb6 23. Qd2 Qd6 24.
Qa5 Nb4 25. e5 Qd1+ 26. Kh2 Qc1 27. Qxc5 Qf4+ 28. Kg1 {½-½ (28) Malakhov,V 
(2691)-Safarli,E (2657) Brest 2018 EXT 2019 [ChessBase II]}) 19. Ra7 {[%emt 0:
06:23]} Ra8 {[%emt 0:10:32]} 20. Rxa8 {[%emt 0:01:10]} Qxa8 {[%emt 0:00:01]}
21. Qe3 {[%emt 0:01:52]} Qb7 {[%emt 0:19:26]} 22. Qxc5 {[%emt 0:06:44]} Qxb2 {
[%emt 0:00:45]} ({Black should try} 22... Rc8 $14 23. Qd4 Nb4) 23. Qxe7 $16 {
[%emt 0:00:46] Hoping for Ne5.} Nc3 {[%emt 0:00:11] [#]} (23... Qb4 $16 {
was worth a try.} 24. c5 Nc3) 24. e5 {[%emt 0:00:40]} (24. Ne5 $1 $18 {and
White stays clearly on top.}) 24... Ne2+ {[%emt 0:00:35][%cal Yc3e2,Ye2d4,
Yd4c6]} 25. Kh2 {[%emt 0:03:11] And now Qh4 would win.} (25. Kh1 $5 {[%cal
Rf3g5]} Nd4 26. Nxd4 Qxd4 27. Qc7 $16) 25... Nd4 $1 {[%emt 0:00:00]} 26. Ng5 {
[%emt 0:01:12][%cal Yg5h7] Black must now prevent Nxh7!} Nc6 {[%emt 0:00:12]
[%csl Ye5,Ye7]} 27. Qd6 {[%emt 0:01:46]} Qxe5+ {[%emt 0:01:27]} 28. Qxe5 {
[%emt 0:00:05]} Nxe5 $11 {[%emt 0:00:04] Endgame KRN-KRN} 29. Ra1 {[%emt 0:00:
06]} Ra8 {[%emt 0:01:58]} 30. c5 {[%emt 0:04:47]} a5 {[%emt 0:03:41]} 31. Ne4 {
[%emt 0:00:58]} Nc6 {[%emt 0:01:37]} 32. Nc3 {[%emt 0:00:00]} Rb8 {[%emt 0:00:
16]} 33. Rd1 {[%emt 0:00:38]} Rb3 {[%emt 0:04:05]} 34. Ne4 {[%emt 0:06:04]} f5
{[%emt 0:04:34]} 35. Nf6+ {[%emt 0:01:28]} Kf7 {[%emt 0:00:22]} (35... Kg7 $5 {
[%cal Rg7f6]}) 36. Nxh7 {[%emt 0:04:03]} Ne5 {[%emt 0:04:06]} (36... Ke7 $11 {
keeps the balance.}) 37. Rd5 {[%emt 0:15:24]} Ke6 {[%emt 0:00:52]} 38. Rd6+ {
[%emt 0:00:08]} Ke7 {[%emt 0:00:06]} 39. Nf6 {[%emt 0:05:45] Threatens to win
with Nd5+.} a4 $2 {[%emt 0:01:15]} (39... Kf7 $16) 40. Nd5+ $18 {[%emt 0:00:21]
} Kf7 {[%emt 0:01:13]} 41. c6 {[%emt 0:31:57]} Nc4 {[%emt 0:31:12]} (41... Nxc6
$18 42. Rxc6 Rb5 43. Rc7+ Kf8) 42. Rf6+ {[%emt 0:01:23] Weighted Error Value:
White=0.07 (flawless) /Black=0.47} 1-0